bitfinex/quotes_SOLUSD_20240712
["timestamp","ask_amount","ask_price","bid_price","bid_amount"]
[1720757149900,7.4774,136.85,136.8,25.583]
[1720757151714,7.62896578,136.88,136.82,18.2719]
[1720757152021,7.3067,136.86,136.82,25.5806]
[1720757152717,7.3064,136.87,136.83,7.3083]
[1720757153715,15.10506578,136.88,136.84,7.3077]
[1720757153921,2.96600033,136.9,136.84,7.3077]
[1720757154099,45.0,136.9,136.84,7.3077]
[1720757154511,45.0,136.9,136.83,7.308]
[1720757154820,21.09495175,136.89,136.83,7.308]
[1720757155023,7.3065,136.87,136.83,7.308]
[1720757155198,7.3058,136.88,136.83,7.308]
[1720757155925,7.3062,136.87,136.83,7.308]
[1720757156303,7.3076,136.85,136.8,18.2748]
[1720757156504,7.3067,136.86,136.8,18.2748]
[1720757157602,7.3067,136.86,136.82,7.3088]
[1720757157812,0.17,136.87,136.83,7.3082]
[1720757158021,7.3061,136.88,136.83,7.3082]
[1720757158620,7.3076,136.85,136.8,7.3097]
[1720757158818,45.17,136.87,136.8,0.53409097]
[1720757158819,7.3069,136.86,136.8,0.53409097]
[1720757159121,7.306,136.88,136.83,7.308]
[1720757159327,7.306,136.88,136.83,7.84197397]
[1720757159503,7.3062,136.87,136.83,7.84197397]
[1720757160125,7.3068,136.86,136.82,25.5805]
[1720757160940,7.3068,136.86,136.82,18.2718]
[1720757161226,7.3068,136.86,136.82,25.5806]
[1720757162018,7.3063,136.87,136.83,7.3082]
[1720757163523,7.3068,136.86,136.82,25.5805]
[1720757163727,0.17,136.89,136.83,8.76452578]
[1720757163940,7.306,136.88,136.83,8.76452578]
[1720757164628,7.306,136.88,136.84,7.3076]
[1720757165633,7.306,136.88,136.83,24.39672578]
[1720757167529,7.3051,136.89,136.84,18.2692]
[1720757167715,7.3051,136.89,136.84,27.03311991]
[1720757168510,7.3057,136.88,136.84,25.5768]
[1720757168707,7.3057,136.88,136.84,18.2692]
[1720757168908,7.3064,136.87,136.83,15.6322]
[1720757169425,7.3067,136.86,136.83,15.6322]
[1720757169627,7.3064,136.87,136.83,15.6322]
[1720757170133,7.3064,136.87,136.83,22.9404]
[1720757170339,7.80328417,136.88,136.82,7.3088]
[1720757170554,7.307,136.86,136.82,7.3088]
[1720757171411,7.3072,136.85,136.81,25.5815]
[1720757171637,7.3069,136.86,136.81,25.5815]
[1720757172224,7.3064,136.87,136.82,7.3088]
[1720757172422,0.17,136.86,136.82,7.3088]
[1720757172914,0.17,136.86,136.81,27.03929137]
[1720757173114,7.3076,136.85,136.81,25.5816]
[1720757173311,45.34,136.87,136.8,15.5511]
[1720757173312,7.3079,136.84,136.8,15.5511]
[1720757173520,60.913,136.87,136.8,22.861]
[1720757173521,0.17,136.85,136.8,22.861]
[1720757173718,7.3079,136.84,136.8,22.861]
[1720757173912,0.17,136.86,136.79,6.1966]
[1720757173913,7.4787,136.83,136.79,6.1966]
[1720757174123,7.3087,136.83,136.79,6.1966]
[1720757174312,7.479,136.82,136.79,6.1966]
[1720757174519,7.309,136.82,136.79,6.1966]
[1720757174934,7.4784,136.83,136.79,6.1966]
[1720757175144,7.3099,136.8,136.79,6.1966]
[1720757175341,7.3099,136.8,136.75,31.7452]
[1720757175507,7.4796,136.81,136.76,7.312]
[1720757175714,7.3096,136.81,136.77,7.3115]
[1720757175945,7.3096,136.81,136.76,7.3117]
[1720757176747,7.4786,136.83,136.77,18.2779]
[1720757177035,7.4786,136.83,136.77,25.5893]
[1720757177036,7.3092,136.82,136.77,25.5893]
[1720757177209,7.4794,136.81,136.77,18.2779]
[1720757177410,7.3089,136.82,136.78,7.3109]
[1720757177634,0.17,136.83,136.77,18.2779]
[1720757177635,7.3095,136.81,136.77,18.2779]
[1720757177827,7.309,136.82,136.77,25.589]
[1720757178029,0.17,136.81,136.77,25.589]
[1720757178539,0.17,136.81,136.77,25.5891]
[1720757179322,0.17,136.81,136.78,7.3109]
[1720757179928,7.4794,136.81,136.77,18.2779]
[1720757181727,0.17,136.81,136.75,6.1514]
[1720757181923,7.31,136.8,136.76,7.3117]
[1720757182123,7.31,136.8,136.75,6.1514]
[1720757182325,7.3106,136.79,136.75,13.4636]
[1720757182740,7.62404558,136.85,136.82,7.3086]
[1720757182931,34.01094697,136.9,136.78,1.46162061]
[1720757182932,7.3057,136.88,136.78,1.46162061]
[1720757183139,7.62150782,136.88,136.84,18.2691]
[1720757183334,7.62150782,136.88,136.85,7.3071]
[1720757183953,7.62150782,136.88,136.84,25.5766]
[1720757184151,14.92730782,136.88,136.84,25.5766]
[1720757184927,7.62150782,136.88,136.87,18.2655]
[1720757185241,34.0062471,136.96,136.87,18.2655]
[1720757185242,7.3029,136.94,136.89,7.305]
[1720757185841,7.61917108,136.95,136.87,18.2655]
[1720757186045,7.3047,136.9,136.86,7.3066]
[1720757186237,7.3042,136.91,136.86,7.3066]
[1720757186436,0.17,136.9,136.86,7.3066]
[1720757187245,7.4746,136.9,136.86,7.3066]
[1720757188051,7.4746,136.9,136.85,7.3072]
[1720757188860,0.17,136.9,136.86,7.3065]
[1720757189029,36.32917108,136.95,136.85,1.45990623]
[1720757189333,7.61917108,136.95,136.85,1.45990623]
[1720757189724,7.61917108,136.95,136.86,22.7071]
[1720757189930,7.61917108,136.95,136.9,7.3044]
[1720757190336,7.3025,136.94,136.89,7.3049]
[1720757190644,7.3025,136.94,136.89,25.5674]
[1720757191171,0.17,136.93,136.89,25.5674]
[1720757191455,7.473,136.93,136.89,25.5674]
[1720757191635,7.3037,136.92,136.88,7.3054]
[1720757192751,7.4732,136.93,136.88,7.3054]
[1720757192960,7.3039,136.92,136.86,40.973]
[1720757193268,6.9732,136.93,136.89,7.305]
[1720757194163,7.3035,136.92,136.88,25.5692]
[1720757195055,7.3036,136.92,136.87,7.3061]
[1720757195450,7.3041,136.91,136.87,7.3061]
[1720757196041,7.61879833,136.92,136.86,22.7071]
[1720757196351,7.3055,136.89,136.86,6.5502]
[1720757196662,7.3046,136.9,136.86,13.8567]
[1720757198250,7.3046,136.9,136.86,6.5502]
[1720757199069,7.3053,136.89,136.86,6.5502]
[1720757199653,7.3057,136.88,136.86,6.5502]
[1720757202457,7.3052,136.89,136.86,6.5502]
[1720757202767,45.34,136.91,136.86,6.5502]
[1720757202768,7.3048,136.9,136.86,6.5502]
[1720757202969,0.17,136.89,136.86,6.5502]
[1720757203165,52.4742,136.91,136.86,13.8567]
[1720757203374,0.17,136.9,136.86,13.8567]
[1720757203662,0.17,136.9,136.86,6.5502]
[1720757204047,7.3054,136.89,136.86,6.5502]
[1720757205357,7.3058,136.88,136.86,6.5502]
[1720757206650,7.3058,136.88,136.84,18.2691]
[1720757207052,7.3053,136.89,136.84,18.2691]
[1720757207647,7.78876828,136.9,136.84,18.2691]
[1720757207849,7.3059,136.88,136.83,22.542]
[1720757209672,7.3059,136.88,136.83,48.1205]
[1720757209876,7.3059,136.88,136.84,7.3077]
[1720757210470,7.3052,136.89,136.84,7.3077]
[1720757212973,7.3055,136.89,136.84,25.5756]
[1720757213270,7.3053,136.89,136.84,25.5756]
[1720757213475,7.3053,136.89,136.85,7.3071]
[1720757214775,7.3056,136.88,136.84,25.5757]
[1720757215183,7.3056,136.88,136.84,18.2681]
[1720757215480,7.3056,136.88,136.84,25.5755]
[1720757215796,7.3056,136.88,136.84,18.2681]
[1720757215961,7.3056,136.88,136.84,25.5755]
[1720757216161,7.78876828,136.9,136.84,25.5755]
[1720757216871,7.306,136.88,136.84,25.5755]
[1720757217285,26.05046828,136.9,136.83,22.542]
[1720757217584,7.3073,136.85,136.81,25.5817]
[1720757218079,7.3069,136.86,136.82,7.3087]
[1720757218661,14.39,136.85,136.82,7.3087]
[1720757220076,14.39,136.85,136.81,25.5818]
[1720757220693,7.3069,136.86,136.81,25.5818]
[1720757221380,7.3072,136.85,136.81,25.5818]
[1720757222266,7.3079,136.84,136.8,7.3097]
[1720757222771,7.4775,136.85,136.81,7.3093]
[1720757224289,7.4775,136.85,136.8,25.5843]
[1720757224583,7.3078,136.84,136.8,25.5843]
[1720757225664,7.4774,136.85,136.81,7.3094]
[1720757226588,7.4774,136.85,136.8,25.5843]
[1720757227286,7.3074,136.85,136.8,25.5843]
[1720757227992,7.3079,136.84,136.8,25.5843]
[1720757228578,21.293501,136.88,136.8,18.2746]
[1720757228775,7.3087,136.83,136.79,29.5487]
[1720757231383,7.95602108,136.87,136.79,22.2383]
[1720757231589,52.3072,136.86,136.81,7.3091]
[1720757231791,0.17,136.85,136.82,18.2718]
[1720757231964,7.61602108,136.87,136.83,18.2695]
[1720757232170,2.96783624,136.89,136.83,18.2695]
[1720757232369,7.3059,136.88,136.84,7.3073]
[1720757232585,7.3059,136.88,136.83,25.5775]
[1720757232978,7.61575478,136.89,136.82,7.3087]
[1720757233179,7.307,136.86,136.82,7.3087]
[1720757233592,7.61575478,136.89,136.82,25.5808]
[1720757233593,7.3064,136.87,136.82,25.5808]
[1720757233790,7.61575478,136.89,136.85,7.3072]
[1720757233973,0.17,136.9,136.84,29.3626]
[1720757234290,7.3067,136.86,136.84,22.055]
[1720757234495,7.3064,136.87,136.84,22.055]
[1720757235494,7.3064,136.87,136.84,23.51174826]
[1720757235687,7.3064,136.87,136.84,22.055]
[1720757235893,7.3064,136.87,136.84,6.5433]
[1720757236482,7.3057,136.88,136.84,13.851]
[1720757237391,7.3062,136.87,136.84,6.5433]
[1720757237607,7.3068,136.86,136.84,6.5433]
[1720757238276,18.2653,136.88,136.81,6.5829]
[1720757238483,7.308,136.84,136.8,25.5846]
[1720757240587,7.308,136.84,136.8,18.2748]
[1720757240893,7.3083,136.83,136.8,18.2748]
[1720757241276,7.3083,136.83,136.79,7.3102]
[1720757241690,7.308,136.84,136.79,7.3102]
[1720757242197,0.17,136.87,136.8,18.2748]
[1720757242400,0.17,136.87,136.82,7.3088]
[1720757242401,7.307,136.86,136.82,7.3088]
[1720757242593,7.307,136.86,136.82,21.6988]
[1720757243319,21.697,136.86,136.81,21.6991]
[1720757243484,7.3052,136.89,136.84,18.269]
[1720757243808,7.3065,136.87,136.84,15.1153]
[1720757243995,21.6965,136.87,136.84,15.1153]
[1720757244304,7.3065,136.87,136.84,15.1153]
[1720757244803,21.6953,136.89,136.85,7.3072]
[1720757245013,21.6953,136.89,136.84,55.082]
[1720757245319,21.09338682,136.88,136.85,0.64722088]
[1720757245598,7.3057,136.88,136.85,0.64722088]
[1720757245781,7.3062,136.87,136.84,15.1153]
[1720757245983,7.3062,136.87,136.84,15.86808499]
[1720757246184,21.6962,136.87,136.84,15.1153]
[1720757246394,14.39,136.86,136.83,7.04728499]
[1720757246697,14.39,136.86,136.83,14.35548499]
[1720757246903,14.39,136.86,136.83,13.6027]
[1720757247576,14.39,136.87,136.84,7.3075]
[1720757247781,21.6958,136.88,136.84,7.3075]
[1720757249304,14.39,136.86,136.83,13.6027]
[1720757250084,14.39,136.86,136.83,6.2945]
[1720757250881,14.39,136.85,136.83,6.2945]
[1720757251086,14.39,136.85,136.82,25.5795]
[1720757252187,14.39,136.85,136.83,7.3081]
[1720757252402,14.39,136.86,136.84,7.3077]
[1720757252988,14.39,136.86,136.83,7.3081]
[1720757253887,21.6963,136.87,136.83,7.3081]
[1720757255102,7.3067,136.86,136.82,27.04104163]
[1720757255297,21.6967,136.86,136.82,27.04104163]
[1720757255500,14.39,136.84,136.8,40.5716]
[1720757255689,14.39,136.84,136.81,7.3092]
[1720757257307,14.39,136.83,136.8,24.8333]
[1720757257487,14.39,136.83,136.8,32.1431]
[1720757257991,21.6982,136.84,136.8,32.1431]
[1720757258511,14.39,136.83,136.8,32.1431]
[1720757261122,14.39,136.84,136.81,7.3093]
[1720757261715,14.39,136.83,136.81,7.3093]
[1720757262899,14.39,136.83,136.8,32.1431]
[1720757265201,14.39,136.83,136.81,7.3093]
[1720757267220,7.4775,136.85,136.81,7.3093]
[1720757267408,14.39,136.84,136.81,7.3093]
[1720757270741,14.39,136.83,136.81,7.3093]
[1720757270950,7.4775,136.85,136.81,7.3093]
[1720757271110,14.39,136.84,136.81,7.3093]
[1720757272914,21.6978,136.84,136.8,32.69617022]
[1720757273908,7.3074,136.85,136.81,7.3093]
[1720757274112,21.6974,136.85,136.81,7.3093]
[1720757275139,14.39,136.84,136.81,7.3093]
[1720757275309,21.6979,136.84,136.8,32.69617022]
[1720757278138,7.3075,136.85,136.8,32.69617022]
[1720757278315,21.6975,136.85,136.8,32.69617022]
[1720757279137,14.39,136.84,136.8,32.69617022]
[1720757279431,21.6978,136.84,136.8,32.69617022]
[1720757280824,7.3078,136.84,136.8,32.69617022]
[1720757281129,7.3067,136.86,136.82,7.3085]
[1720757281325,99.8256,136.92,136.83,18.82354893]
[1720757281530,14.39,136.86,136.83,18.82354893]
[1720757281917,14.39,136.85,136.81,15.7375]
[1720757282117,14.39,136.84,136.81,15.7375]
[1720757282330,14.39,136.84,136.8,6.5585]
[1720757282331,14.39,136.84,136.8,13.8682]
[1720757282519,14.39,136.83,136.8,13.8682]
[1720757282715,14.39,136.83,136.81,7.3093]
[1720757283024,14.39,136.84,136.81,7.3093]
[1720757283228,14.39,136.84,136.82,7.3087]
[1720757283738,14.39,136.85,136.82,7.3087]
[1720757283928,14.39,136.85,136.81,7.3091]
[1720757284432,14.39,136.84,136.81,7.3091]
[1720757285535,14.39,136.85,136.81,7.3091]
[1720757285954,14.39,136.85,136.82,7.3087]
[1720757286618,14.39,136.85,136.81,7.3093]
[1720757287126,7.3069,136.86,136.82,7.3086]
[1720757287430,14.39,136.85,136.82,7.3086]
[1720757287639,35.48646535,136.85,136.82,7.3086]
[1720757287843,14.39,136.85,136.82,7.3086]
[1720757288736,7.3069,136.86,136.82,7.3086]
[1720757288944,21.6969,136.86,136.82,7.3086]
[1720757289953,21.09646535,136.85,136.82,7.3086]
[1720757290128,14.39,136.85,136.82,7.3086]
[1720757291862,21.6969,136.86,136.82,7.3086]
[1720757292062,21.09622401,136.85,136.83,7.3083]
[1720757292242,14.39,136.86,136.82,7.3086]
[1720757292958,21.6969,136.86,136.82,7.3086]
[1720757293262,35.48598267,136.85,136.82,7.3086]
[1720757293456,14.39,136.85,136.82,7.3086]
[1720757293759,14.39,136.85,136.83,7.3083]
[1720757294163,14.39,136.86,136.83,7.3083]
[1720757294363,21.09597997,136.85,136.83,7.3083]
[1720757294549,14.39,136.86,136.83,7.3083]
[1720757294753,21.09549732,136.85,136.83,7.3083]
[1720757294957,14.39,136.86,136.83,7.3083]
[1720757295764,7.61963745,136.9,136.85,14.39]
[1720757295942,21.09171414,136.89,136.86,7.3064]
[1720757296144,21.09171414,136.88,136.86,7.3064]
[1720757296345,14.39,136.89,136.86,7.3064]
[1720757296553,21.09217686,136.88,136.86,7.3064]
[1720757296760,14.39,136.89,136.86,7.3064]
[1720757296955,21.09134563,136.88,136.86,7.3064]
[1720757297274,14.39,136.89,136.86,25.5732]
[1720757298557,21.6946,136.9,136.86,25.5732]
[1720757298737,21.0908364,136.89,136.86,25.5732]
[1720757298953,21.6946,136.9,136.86,25.5732]
[1720757299157,21.0908337,136.89,136.86,25.5732]
[1720757299346,21.6946,136.9,136.86,25.5732]
[1720757299547,21.0909543,136.89,136.86,25.5732]
[1720757299744,21.0909543,136.89,136.84,33.9933]
[1720757299944,35.48227587,136.88,136.84,33.9933]
[1720757300148,21.09227587,136.87,136.84,33.9933]
[1720757300355,14.39,136.88,136.85,7.3072]
[1720757301164,7.3052,136.89,136.85,7.3072]
[1720757301371,21.09322043,136.88,136.85,7.3072]
[1720757301581,21.6952,136.89,136.85,7.3072]
[1720757301770,21.09322313,136.88,136.85,7.3072]
[1720757302074,21.6952,136.89,136.85,7.3072]
[1720757302246,28.39902313,136.88,136.84,55.6909]
[1720757302446,14.39,136.86,136.82,6.6227]
[1720757302664,14.39,136.86,136.83,7.308]
[1720757303259,14.39,136.86,136.84,7.3077]
[1720757303463,14.39,136.87,136.84,7.3077]
[1720757303666,14.39,136.87,136.85,7.3071]
[1720757304057,14.39,136.87,136.84,7.3075]
[1720757304450,14.39,136.87,136.84,25.577]
[1720757304657,14.39,136.88,136.84,25.577]
[1720757304857,0.17,136.87,136.84,25.577]
[1720757305756,2.96082127,136.89,136.85,7.3069]
[1720757306075,35.65273684,136.88,136.86,7.3066]
[1720757306256,0.17,136.88,136.85,7.3071]
[1720757306673,14.56,136.88,136.85,7.3071]
[1720757307173,0.17,136.88,136.85,7.3071]
[1720757309479,24.65592127,136.89,136.85,7.3071]
[1720757309774,21.09273684,136.88,136.85,7.3071]
[1720757310183,14.39,136.88,136.85,7.3071]
[1720757310475,21.6956,136.88,136.84,25.5771]
[1720757310651,21.6974,136.85,136.81,25.5819]
[1720757310859,14.39,136.83,136.8,22.718]
[1720757311171,14.39,136.83,136.8,40.9927]
[1720757311868,0.17,136.87,136.82,7.3087]
[1720757311869,14.39,136.84,136.82,7.3087]
[1720757312467,0.17,136.87,136.81,7.3093]
[1720757312662,14.39,136.84,136.81,7.3093]
[1720757313267,14.39,136.83,136.82,7.3087]
[1720757313558,14.39,136.84,136.82,7.3087]
[1720757313778,7.3069,136.86,136.82,7.3087]
[1720757314144,0.17,136.87,136.83,7.3081]
[1720757314390,14.39,136.86,136.83,7.3081]
[1720757314788,14.56,136.87,136.83,7.3081]
[1720757315654,0.17,136.87,136.84,7.3076]
[1720757315853,0.17,136.87,136.83,21.7348]
[1720757315854,7.3051,136.89,136.85,7.3069]
[1720757316058,14.39,136.88,136.85,7.3069]
[1720757316365,14.39,136.88,136.84,7.3077]
[1720757316787,21.6957,136.88,136.84,25.577]
[1720757317281,14.39,136.87,136.84,25.577]
[1720757317867,14.39,136.87,136.84,18.2693]
[1720757318282,14.39,136.86,136.83,21.7348]
[1720757319283,14.39,136.86,136.83,29.043]
[1720757319477,14.39,136.87,136.83,29.043]
[1720757319874,21.6962,136.87,136.83,29.043]
[1720757320274,21.6968,136.86,136.83,6.6013]
[1720757320482,14.39,136.85,136.81,18.2722]
[1720757320873,14.39,136.85,136.82,7.3085]
[1720757321263,14.39,136.85,136.81,25.5815]
[1720757323271,14.39,136.84,136.81,25.5815]
[1720757323671,14.39,136.85,136.81,25.5815]
[1720757323892,21.8673,136.85,136.81,25.5815]
[1720757324096,14.56,136.85,136.81,25.5815]
[1720757324302,14.39,136.85,136.81,25.5815]
[1720757325270,14.39,136.84,136.81,25.5815]
[1720757325593,14.56,136.83,136.8,13.8678]
[1720757325965,7.3074,136.85,136.81,7.3093]
[1720757326284,14.39,136.84,136.81,7.3093]
[1720757326466,14.39,136.84,136.8,13.8679]
[1720757326467,14.39,136.83,136.8,13.8679]
[1720757326669,7.3086,136.83,136.78,7.3106]
[1720757326881,14.39,136.81,136.77,18.2781]
[1720757327473,14.39,136.81,136.78,7.3107]
[1720757327691,14.39,136.81,136.79,7.3104]
[1720757329293,14.39,136.81,136.78,8.0418444]
[1720757331500,14.39,136.81,136.78,7.3108]
[1720757332478,14.39,136.8,136.78,7.3108]
[1720757333597,14.39,136.8,136.77,18.2781]
[1720757333774,14.39,136.78,136.75,7.3122]
[1720757333980,14.39,136.77,136.75,7.3122]
[1720757334200,14.39,136.76,136.74,32.1882]
[1720757334781,14.39,136.76,136.75,7.3126]
[1720757335490,7.4804,136.79,136.75,7.3126]
[1720757335691,14.39,136.77,136.75,7.3126]
[1720757336280,14.39,136.77,136.74,25.5945]
[1720757336502,14.39,136.76,136.74,25.5945]
[1720757336684,14.39,136.78,136.75,7.3125]
[1720757337607,14.39,136.78,136.76,7.3118]
[1720757337900,20.22706671,136.84,136.74,14.39]
[1720757338097,14.39,136.8,136.77,7.3112]
[1720757338689,14.39,136.8,136.77,25.59]
[1720757339102,21.6999,136.8,136.76,7.3119]
[1720757339307,14.39,136.79,136.75,7.3124]
[1720757339479,14.39,136.78,136.75,7.3124]
[1720757340103,14.39,136.78,136.74,25.5945]
[1720757342308,26.06463424,136.81,136.73,8.1592011]
[1720757342509,14.39,136.77,136.73,8.1592011]
[1720757342688,14.39,136.77,136.73,26.4434011]
[1720757343114,14.39,136.77,136.74,7.3131]
[1720757346006,26.06463424,136.81,136.75,18.2807]
[1720757346007,7.79113424,136.81,136.75,18.2807]
[1720757346208,14.39,136.79,136.75,18.2807]
[1720757346420,14.39,136.79,136.75,25.5931]
[1720757346991,21.7004,136.79,136.75,25.5931]
[1720757347194,14.39,136.78,136.75,25.5931]
[1720757348406,7.311,136.78,136.74,7.313]
[1720757348600,21.7016,136.77,136.73,26.4433011]
[1720757348801,14.39,136.76,136.73,26.4433011]
[1720757349515,14.39,136.75,136.73,0.8457011]
[1720757349911,14.39,136.74,136.73,0.8457011]
[1720757351007,21.7031,136.74,136.73,0.8457011]
[1720757351517,7.314,136.73,136.68,31.8493]
[1720757351696,44.56,136.74,136.68,31.8493]
[1720757351697,14.39,136.71,136.68,31.8493]
[1720757353726,14.39,136.7,136.68,18.2897]
[1720757354519,14.39,136.7,136.67,7.3167]
[1720757356200,14.39,136.7,136.67,25.6089]
[1720757356798,0.17,136.72,136.68,7.3163]
[1720757356999,14.56,136.72,136.68,7.3163]
[1720757358100,0.17,136.72,136.68,7.3163]
[1720757358300,7.3139,136.73,136.68,7.3163]
[1720757358621,14.39,136.72,136.68,7.3162]
[1720757359009,14.39,136.71,136.68,7.3162]
[1720757361219,14.39,136.72,136.68,7.3162]
[1720757361713,21.7043,136.72,136.68,7.3162]
[1720757361917,14.39,136.71,136.67,25.6089]
[1720757362123,21.7047,136.71,136.67,25.6089]
[1720757362423,14.39,136.7,136.67,25.6089]
[1720757366426,37.62477442,136.74,136.65,21.99]
[1720757366605,14.39,136.73,136.7,7.315]
[1720757366802,37.62477442,136.74,136.7,25.6029]
[1720757366803,14.39,136.74,136.7,25.6029]
[1720757367314,21.7036,136.73,136.7,18.2879]
[1720757367523,14.39,136.72,136.7,18.2879]
[1720757367717,14.39,136.72,136.66,45.17]
[1720757367718,14.39,136.71,136.67,7.3163]
[1720757367907,14.39,136.7,136.67,7.3163]
[1720757368107,14.39,136.7,136.67,25.6084]
[1720757368308,14.39,136.7,136.67,18.2921]
[1720757368718,7.3143,136.72,136.68,7.3162]
[1720757368917,0.17,136.71,136.68,7.3162]
[1720757369115,7.314,136.73,136.69,7.3155]
[1720757369324,14.39,136.73,136.69,7.3155]
[1720757369525,14.39,136.73,136.7,7.3152]
[1720757370119,21.7037,136.73,136.69,7.3155]
[1720757370627,14.39,136.73,136.69,7.3155]
[1720757371136,14.39,136.74,136.71,7.3144]
[1720757371509,21.7026,136.75,136.71,7.3144]
[1720757372429,21.7031,136.74,136.7,18.2881]
[1720757372639,14.39,136.73,136.7,18.2881]
[1720757373014,14.39,136.73,136.7,25.6032]
[1720757373213,7.62482735,136.77,136.73,7.3136]
[1720757373418,14.93672735,136.77,136.71,14.39]
[1720757373616,14.39,136.77,136.73,7.3133]
[1720757373815,21.7015,136.77,136.72,25.5991]
[1720757374034,14.39,136.74,136.71,7.3144]
[1720757374619,14.39,136.73,136.7,7.315]
[1720757376116,7.3132,136.74,136.69,31.7457]
[1720757376117,14.39,136.72,136.69,31.7457]
[1720757376433,14.39,136.72,136.66,16.2664]
[1720757376434,14.39,136.7,136.68,7.3163]
[1720757378229,0.17,136.71,136.68,7.3163]
[1720757378434,14.56,136.71,136.68,7.3163]
[1720757379938,14.39,136.71,136.68,7.3163]
[1720757380236,14.39,136.72,136.68,7.3163]
[1720757380452,7.4839,136.73,136.69,7.3157]
[1720757380614,15.7841,136.76,136.69,7.3157]
[1720757380615,7.3125,136.76,136.71,7.3145]
[1720757380820,10.27202127,136.78,136.73,7.3133]
[1720757381024,14.39,136.76,136.73,7.3133]
[1720757381220,14.39,136.77,136.73,7.3133]
[1720757381430,7.3116,136.77,136.72,25.5982]
[1720757381629,14.39,136.76,136.72,25.5982]
[1720757382522,14.39,136.74,136.72,25.5984]
[1720757383640,14.39,136.75,136.72,25.5984]
[1720757384354,14.39,136.75,136.72,18.2842]
[1720757384732,14.39,136.74,136.72,18.2842]
[1720757385135,14.39,136.74,136.71,13.6567]
[1720757385336,7.3127,136.75,136.71,13.6567]
[1720757385537,14.39,136.73,136.71,13.6567]
[1720757385734,14.39,136.73,136.7,7.315]
[1720757386036,14.39,136.72,136.7,7.315]
[1720757386250,14.39,136.72,136.69,25.604]
[1720757386458,14.39,136.71,136.69,25.604]
[1720757386638,14.39,136.71,136.7,7.3152]
[1720757386839,14.39,136.71,136.69,25.604]
[1720757390234,14.39,136.71,136.68,7.3161]
[1720757390662,14.39,136.7,136.68,7.3161]
[1720757391140,14.39,136.7,136.67,33.49404174]
[1720757391747,14.39,136.69,136.67,33.49404174]
[1720757391953,0.17,136.72,136.67,25.6087]
[1720757391954,14.39,136.68,136.67,25.6087]
[1720757394062,14.39,136.69,136.67,25.6087]
[1720757395151,14.39,136.71,136.63,6.0072]
[1720757395349,14.39,136.67,136.65,7.3176]
[1720757395550,14.39,136.67,136.64,7.3182]
[1720757395864,14.39,136.69,136.66,25.6108]
[1720757396254,14.39,136.69,136.66,18.2934]
[1720757396563,14.39,136.68,136.66,18.2934]
[1720757396763,0.17,136.67,136.66,18.2934]
[1720757396959,14.39,136.68,136.66,18.2934]
[1720757397154,14.39,136.69,136.66,18.2934]
[1720757397567,14.39,136.69,136.67,7.3166]
[1720757398063,7.3149,136.71,136.67,7.3166]
[1720757398247,14.56,136.7,136.67,7.3166]
[1720757398655,14.39,136.7,136.68,7.3162]
[1720757398859,14.39,136.71,136.66,32.6834]